fUSD/lending_fUSD_20250716
["ID","MTS","AMOUNT","RATE_DAILY","PERIOD"]
[372572292,1752688241840,-500.0,0.00020706,2]
[372572294,1752688241849,-500.0,0.00020706,2]
[372572296,1752688241859,-500.0,0.00020706,2]
[372572298,1752688241868,-500.0,0.00020706,2]
[372572300,1752688241877,-500.0,0.00020706,2]
[372572302,1752688241886,-500.0,0.00020706,2]
[372572304,1752688241896,-500.0,0.00020706,2]
[372572306,1752688241906,-500.0,0.00020706,2]
[372572308,1752688241915,-500.0,0.00020706,2]
[372572310,1752688241925,-500.0,0.00020706,2]
[372572312,1752688241935,-500.0,0.00020706,2]
[372572314,1752688241945,-500.0,0.00020706,2]
[372572316,1752688241954,-500.0,0.00020706,2]
[372572318,1752688241963,-500.0,0.00020706,2]
[372572320,1752688241973,-500.0,0.00020706,2]
[372572322,1752688241983,-500.0,0.00020706,2]
[372572324,1752688241992,-500.0,0.00020706,2]
[372572326,1752688242002,-500.0,0.00020706,2]
[372572328,1752688242014,-500.0,0.00020706,2]
[372572330,1752688242023,-500.0,0.00020706,2]
[372572332,1752688242033,-500.0,0.00020706,2]
[372572334,1752688242047,-500.0,0.00020706,2]
[372572336,1752688242057,-500.0,0.00020706,2]
[372572338,1752688242066,-500.0,0.00020706,2]
[372572340,1752688242076,-500.0,0.00020706,2]
[372572342,1752688242086,-500.0,0.00020706,2]
[372572344,1752688242095,-500.0,0.00020706,2]
[372572346,1752688242104,-500.0,0.00020706,2]
[372572348,1752688242115,-500.0,0.00020706,2]
[372572350,1752688242125,-500.0,0.00020706,2]
[372572352,1752688242134,-500.0,0.00020706,2]
[372572354,1752688242143,-500.0,0.00020706,2]
[372572356,1752688242152,-500.0,0.00020706,2]
[372572358,1752688242161,-500.0,0.00020706,2]
[372572360,1752688242171,-500.0,0.00020706,2]
[372572362,1752688242180,-500.0,0.00020706,2]
[372572364,1752688242192,-500.0,0.00020706,2]
[372572366,1752688242201,-500.0,0.00020706,2]
[372572368,1752688242211,-500.0,0.00020706,2]
[372572371,1752688242222,-500.0,0.00020706,2]
[372572373,1752688242232,-500.0,0.00020706,2]
[372572375,1752688242245,-500.0,0.00020706,2]
[372572377,1752688242255,-500.0,0.00020706,2]
[372572379,1752688242265,-500.0,0.00020706,2]
[372572381,1752688242274,-500.0,0.00020706,2]
[372572383,1752688242283,-500.0,0.00020706,2]
[372572385,1752688242292,-500.0,0.00020706,2]
[372572387,1752688242302,-500.0,0.00020706,2]
[372572389,1752688242311,-500.0,0.00020706,2]
[372572391,1752688242320,-500.0,0.00020706,2]
[372572393,1752688242329,-500.0,0.00020706,2]
[372572395,1752688242339,-500.0,0.00020706,2]
[372572397,1752688242348,-500.0,0.00020706,2]
[372572398,1752688242357,-500.0,0.00020706,2]
[372572400,1752688242366,-500.0,0.00020706,2]
[372572402,1752688242376,-500.0,0.00020706,2]
[372572404,1752688242385,-500.0,0.00020706,2]
[372572407,1752688242395,-500.0,0.00020706,2]
[372572408,1752688242404,-500.0,0.00020706,2]
[372572410,1752688242414,-500.0,0.00020706,2]
[372572412,1752688242423,-500.0,0.00020706,2]
[372572414,1752688242433,-500.0,0.00020706,2]
[372572416,1752688242443,-500.0,0.00020706,2]
[372572418,1752688242452,-500.0,0.00020706,2]
[372572420,1752688242462,-500.0,0.00020706,2]
[372572422,1752688242471,-500.0,0.00020706,2]
[372572424,1752688242480,-500.0,0.00020706,2]
[372572426,1752688242489,-500.0,0.00020706,2]
[372572428,1752688242499,-500.0,0.00020706,2]
[372572430,1752688242508,-500.0,0.00020706,2]
[372572432,1752688242517,-500.0,0.00020706,2]
[372572434,1752688242527,-500.0,0.00020706,2]
[372572436,1752688242537,-500.0,0.00020706,2]
[372572438,1752688242546,-500.0,0.00020706,2]
[372572440,1752688242556,-500.0,0.00020706,2]
[372572442,1752688242565,-500.0,0.00020706,2]
[372572444,1752688242575,-500.0,0.00020706,2]
[372572446,1752688242584,-500.0,0.00020706,2]
[372572448,1752688242597,-500.0,0.00020706,2]
[372572450,1752688242607,-500.0,0.00020706,2]
[372572452,1752688242616,-500.0,0.00020706,2]
[372572454,1752688242626,-500.0,0.00020706,2]
[372572456,1752688242636,-500.0,0.00020706,2]
[372572458,1752688242646,-500.0,0.00020706,2]
[372572460,1752688242655,-500.0,0.00020706,2]
[372572462,1752688242665,-500.0,0.00020706,2]
[372572464,1752688242674,-500.0,0.00020706,2]
[372572467,1752688242685,-500.0,0.00020706,2]
[372572469,1752688242696,-500.0,0.00020706,2]
[372572471,1752688242706,-500.0,0.00020706,2]
[372572474,1752688242716,-500.0,0.00020706,2]
[372572476,1752688242726,-500.0,0.00020706,2]
[372572478,1752688242738,-500.0,0.00020706,2]
[372572480,1752688242747,-500.0,0.00020706,2]
[372572482,1752688242757,-500.0,0.00020706,2]
[372572485,1752688242766,-500.0,0.00020706,2]
[372572487,1752688242775,-500.0,0.00020706,2]
[372572489,1752688242784,-500.0,0.00020706,2]
[372572491,1752688242794,-500.0,0.00020706,2]
[372572493,1752688242804,-500.0,0.00020706,2]
[372572495,1752688242814,-500.0,0.00020706,2]
[372572497,1752688242823,-500.0,0.00020706,2]
[372572499,1752688242833,-500.0,0.00020706,2]
[372572501,1752688242843,-500.0,0.00020706,2]
[372572503,1752688242853,-500.0,0.00020706,2]
[372572505,1752688242863,-500.0,0.00020706,2]
[372572507,1752688242872,-500.0,0.00020706,2]
[372572509,1752688242881,-500.0,0.00020706,2]
[372572511,1752688242890,-500.0,0.00020706,2]
[372572512,1752688242900,-500.0,0.00020706,2]
[372572514,1752688242909,-500.0,0.00020706,2]
[372572516,1752688242919,-502.0,0.00020706,2]
[372572518,1752688242928,-255.81794525,0.00020706,2]
[372572520,1752688242939,-446.26982431,0.00020706,2]
[372572522,1752688242948,-500.0,0.00020706,2]
[372572524,1752688242958,-500.0,0.00020706,2]
[372572526,1752688242968,-500.0,0.00020706,2]
[372572529,1752688242978,-500.0,0.00020706,2]
[372572531,1752688242987,-500.0,0.00020706,2]
[372572532,1752688242997,-500.0,0.00020706,2]
[372572535,1752688243007,-500.0,0.00020706,2]
[372572536,1752688243016,-500.0,0.00020706,2]
[372572538,1752688243028,-500.0,0.00020706,2]
[372572540,1752688243042,-500.0,0.00020706,2]
[372572542,1752688243051,-500.0,0.00020706,2]
[372572544,1752688243061,-500.0,0.00020706,2]
[372572546,1752688243070,-500.0,0.00020706,2]
[372572548,1752688243082,-500.0,0.00020706,2]
[372572550,1752688243092,-500.0,0.00020706,2]
[372572553,1752688243102,-500.0,0.00020706,2]
[372572555,1752688243113,-500.0,0.00020706,2]
[372572556,1752688243123,-500.0,0.00020706,2]
[372572559,1752688243133,-500.0,0.00020706,2]
[372572560,1752688243143,-500.0,0.00020706,2]
[372572562,1752688243153,-500.0,0.00020706,2]
[372572564,1752688243162,-500.0,0.00020706,2]
[372572566,1752688243172,-500.0,0.00020706,2]
[372572568,1752688243181,-500.0,0.00020706,2]
[372572571,1752688243194,-500.0,0.00020706,2]
[372572573,1752688243203,-500.0,0.00020706,2]
[372572575,1752688243213,-500.0,0.00020706,2]
[372572577,1752688243223,-500.0,0.00020706,2]
[372572579,1752688243233,-500.0,0.00020706,2]
[372572581,1752688243243,-500.0,0.00020706,2]
[372572583,1752688243253,-500.0,0.00020706,2]
[372572585,1752688243262,-500.0,0.00020706,2]
[372572587,1752688243271,-500.0,0.00020706,2]
[372572589,1752688243281,-500.0,0.00020706,2]
[372572591,1752688243291,-500.0,0.00020706,2]
[372572593,1752688243300,-500.0,0.00020706,2]
[372572595,1752688243310,-500.0,0.00020706,2]
[372572597,1752688243319,-500.0,0.00020706,2]
[372572599,1752688243332,-500.0,0.00020706,2]
[372572601,1752688243342,-500.0,0.00020706,2]
[372572603,1752688243351,-500.0,0.00020706,2]
[372572605,1752688243361,-500.0,0.00020706,2]
[372572607,1752688243370,-500.0,0.00020706,2]
[372572609,1752688243380,-500.0,0.00020706,2]
[372572611,1752688243390,-500.0,0.00020706,2]
[372572613,1752688243399,-500.0,0.00020706,2]
[372572615,1752688243409,-500.0,0.00020706,2]
[372572617,1752688243419,-500.0,0.00020706,2]
[372572619,1752688243428,-500.0,0.00020706,2]
[372572621,1752688243439,-500.0,0.00020706,2]
[372572623,1752688243449,-500.0,0.00020706,2]
[372572625,1752688243459,-500.0,0.00020706,2]
[372572627,1752688243468,-500.0,0.00020706,2]
[372572629,1752688243478,-500.0,0.00020706,2]
[372572631,1752688243487,-500.0,0.00020706,2]
[372572633,1752688243497,-500.0,0.00020706,2]
[372572635,1752688243507,-500.0,0.00020706,2]
[372572637,1752688243516,-500.0,0.00020706,2]
[372572639,1752688243526,-500.0,0.00020706,2]
[372572641,1752688243535,-500.0,0.00020706,2]
[372572643,1752688243545,-500.0,0.00020706,2]
[372572645,1752688243554,-500.0,0.00020706,2]
[372572647,1752688243564,-500.0,0.00020706,2]
[372572649,1752688243573,-500.0,0.00020706,2]
[372572651,1752688243583,-500.0,0.00020706,2]
[372572654,1752688243592,-500.0,0.00020706,2]
[372572656,1752688243601,-500.0,0.00020706,2]
[372572658,1752688243611,-500.0,0.00020706,2]
[372572660,1752688243620,-500.0,0.00020706,2]
[372572662,1752688243630,-500.0,0.00020706,2]
[372572664,1752688243639,-500.0,0.00020706,2]
[372572666,1752688243649,-500.0,0.00020706,2]
[372572668,1752688243659,-500.0,0.00020706,2]
[372572670,1752688243668,-500.0,0.00020706,2]
[372572672,1752688243678,-500.0,0.00020706,2]
[372572674,1752688243687,-500.0,0.00020706,2]
[372572676,1752688243699,-500.0,0.00020706,2]
[372572677,1752688243708,-500.0,0.00020706,2]
[372572679,1752688243717,-500.0,0.00020706,2]
[372572682,1752688243727,-500.0,0.00020706,2]
[372572684,1752688243736,-500.0,0.00020706,2]
[372572685,1752688243746,-500.0,0.00020706,2]
[372572687,1752688243755,-500.0,0.00020706,2]
[372572689,1752688243765,-500.0,0.00020706,2]
[372572692,1752688243775,-500.0,0.00020706,2]
[372572694,1752688243785,-500.0,0.00020706,2]
[372572696,1752688243795,-500.0,0.00020706,2]
[372572697,1752688243805,-500.0,0.00020706,2]
[372572700,1752688243815,-500.0,0.00020706,2]
[372572702,1752688243825,-500.0,0.00020706,2]
[372572704,1752688243834,-500.0,0.00020706,2]
[372572706,1752688243844,-500.0,0.00020706,2]
[372572708,1752688243854,-69540.26504483,0.00020706,2]
[372572710,1752688243863,-69540.26504483,0.00020706,2]
[372572712,1752688243872,-392.89369994,0.00020706,2]
[372572714,1752688243881,-164.45048211,0.00020706,2]
[372572715,1752688243891,-420.0,0.00020709,2]
[372572718,1752688243901,-155.69252673,0.0002071,2]
[372572720,1752688243911,-500.0,0.00020727,2]
[372572722,1752688243923,-1284.8620498,0.00020728,3]
[372572724,1752688243932,-277.22,0.00020745,2]
[372572726,1752688243944,-500.0,0.00020754,2]
[372572728,1752688243953,-167.92,0.00020756,2]
[372572730,1752688243964,-500.0,0.00020773,2]
[372572732,1752688243973,-500.0,0.00020773,2]
[372572734,1752688243982,-502.39398706,0.00020773,2]
[372572736,1752688243993,-500.0,0.00020773,2]
[372572738,1752688244007,-500.0,0.00020773,2]
[372572740,1752688244017,-500.0,0.00020773,2]
[372572742,1752688244026,-500.0,0.00020773,2]
[372572744,1752688244035,-500.0,0.00020773,2]
[372572746,1752688244049,-500.0,0.00020773,2]
[372572748,1752688244059,-500.0,0.00020773,2]
[372572750,1752688244068,-500.0,0.00020773,2]
[372572752,1752688244079,-500.0,0.00020773,2]
[372572754,1752688244088,-500.0,0.00020782,2]
[372572756,1752688244098,-397.0,0.00020796,2]
[372572758,1752688244107,-1124.33364454,0.000208,2]
[372572760,1752688244117,-3400.0,0.000208,7]
[372572761,1752688244126,-500.0,0.00020809,2]
[372572762,1752688244135,-2489.27,0.00020822,2]
[372572763,1752688244144,-177.29208779,0.00020832,2]
[372572764,1752688244153,-500.0,0.00020836,2]
[372572765,1752688244162,-215.0738,0.00020858,2]
[372572766,1752688244171,-500.0,0.00020864,2]
[372572767,1752688244180,-1284.8620498,0.00020866,4]
[372572768,1752688244191,-500.0,0.00020891,2]
[372572769,1752688244200,-150.0,0.00020893,2]
[372572770,1752688244210,-600.0,0.000209,7]
[372572771,1752688244219,-397.0,0.00020919,2]
[372572772,1752688244228,-500.0,0.00020919,2]
[372572773,1752688244237,-500.0,0.00020946,2]
[372572774,1752688244246,-600.0,0.00020959,2]
[372572775,1752688244255,-500.0,0.00020968,2]
[372572777,1752688244264,-150.0,0.00020968,2]
[372572779,1752688244274,-500.0,0.00020968,2]
[372572781,1752688244283,-247.08116392,0.00020968,2]
[372572783,1752688244293,-439.0,0.00020968,2]
[372572785,1752688244302,-169.81054194,0.00020968,2]
[372572787,1752688244312,-150.0,0.00020968,2]
[372572789,1752688244321,-500.0,0.00020968,2]
[372572791,1752688244331,-200.0,0.00020968,2]
[372572793,1752688244340,-201.16342129,0.00020968,2]
[372572795,1752688244349,-500.0,0.00020968,2]
[372572797,1752688244359,-722.0,0.00020968,2]
[372572799,1752688244369,-500.0,0.00020968,2]
[372572801,1752688244378,-500.0,0.00020968,2]
[372572803,1752688244387,-500.0,0.00020968,2]
[372572805,1752688244397,-500.0,0.00020968,2]
[372572807,1752688244406,-150.0,0.00020968,2]
[372572809,1752688244415,-500.0,0.00020968,2]
[372572811,1752688244425,-1657.0,0.00020968,2]
[372572813,1752688244435,-516.0,0.00020968,2]
[372572815,1752688244446,-500.0,0.00020968,2]
[372572817,1752688244455,-150.0,0.00020968,2]
[372572819,1752688244465,-2253.0,0.00020968,2]
[372572821,1752688244474,-500.0,0.00020968,2]
[372572823,1752688244484,-500.0,0.00020968,2]
[372572825,1752688244493,-500.0,0.00020973,2]
[372572827,1752688244502,-397.0,0.0002098,2]
[372572829,1752688244512,-500.0,0.0002098,2]
[372572831,1752688244522,-150.0,0.0002098,2]
[372572833,1752688244531,-500.0,0.0002098,2]
[372572835,1752688244541,-150.0,0.0002098,2]
[372572837,1752688244550,-500.0,0.0002098,2]
[372572839,1752688244559,-230.09519341,0.00020984,2]
[372572841,1752688244567,-69424.87179191,0.00021,8]
[372572843,1752688244576,-200.0,0.00021,2]
[372572845,1752688244584,-748.79616408,0.00021,2]
[372572847,1752688244593,-94780.04564186,0.00021,2]
[372572849,1752688244602,-362.58516626,0.00021,2]
[372572851,1752688244612,-2000.0,0.00021,2]
[372572853,1752688244621,-1000.0,0.00021,2]
[372572855,1752688244630,-151.0,0.00021,2]
[372572857,1752688244639,-151.0,0.00021,2]
[372572859,1752688244648,-151.0,0.00021,2]
[372572861,1752688244657,-151.0,0.00021,2]
[372572863,1752688244665,-151.0,0.00021,2]
[372572865,1752688244674,-151.0,0.00021,2]
[372572867,1752688244683,-151.121193,0.00021,2]
[372572869,1752688244693,-151.0,0.00021,2]
[372572871,1752688244702,-151.0,0.00021,2]
[372572873,1752688244711,-173.524588,0.00021,2]
[372572875,1752688244719,-173.524588,0.00021,2]
[372572877,1752688244728,-151.0,0.00021,2]
[372572879,1752688244738,-151.0,0.00021,2]
[372572881,1752688244748,-151.0,0.00021,2]
[372572883,1752688244756,-151.0,0.00021,2]
[372572885,1752688244765,-176.752998,0.00021,2]
[372572887,1752688244774,-176.752998,0.00021,2]
[372572889,1752688244783,-264.889981,0.00021,2]
[372572891,1752688244790,-264.889981,0.00021,2]
[372572893,1752688244798,-6800.63883401,0.00021,2]
[372572895,1752688244807,-1189.0,0.00021,2]
[372572897,1752688244815,-500.0,0.00021001,2]
[372572899,1752688244822,-1284.8620498,0.00021003,4]
[372572901,1752688244830,-814.41,0.00021014,2]
[372572903,1752688244838,-500.0,0.00021028,2]
[372572906,1752688244847,-167.06,0.00021047,2]
[372572908,1752688244856,-500.0,0.00021056,2]
[372572910,1752688244864,-3350.0,0.00021077,2]
[372572912,1752688244871,-1166.0,0.00021077,2]
[372572914,1752688244880,-889.0,0.00021077,2]
[372572916,1752688244888,-1267.0,0.00021077,2]
[372572918,1752688244897,-1063.0,0.00021077,2]
[372572920,1752688244906,-2079.878,0.00021077,2]
[372572922,1752688244914,-940.07,0.00021077,2]
[372572924,1752688244923,-595.0,0.00021077,2]
[372572927,1752688244932,-1286.0,0.00021077,2]
[372572929,1752688244941,-1685.0,0.00021077,2]
[372572930,1752688244948,-6044.0,0.00021077,2]
[372572932,1752688244956,-861.0,0.00021077,2]
[372572934,1752688244965,-500.0,0.00021083,2]
[372572937,1752688244973,-622.12,0.000211,2]
[372572939,1752688244982,-248.85,0.000211,2]
[372572941,1752688244991,-1866.93,0.000211,2]
[372572943,1752688244999,-373.38,0.000211,2]
[372572945,1752688245007,-224.03,0.000211,2]
[372572947,1752688245017,-223.34,0.000211,2]
[372572949,1752688245026,-417.0,0.000211,2]
[372572952,1752688245038,-210.51,0.000211,2]
[372572954,1752688245050,-1332.95,0.000211,2]
[372572956,1752688245060,-1332.95,0.000211,2]
[372572958,1752688245070,-441.28,0.000211,2]
[372572959,1752688245078,-441.28,0.000211,2]
[372572961,1752688245088,-152.0,0.00021106,4]
[372572963,1752688245098,-500.0,0.0002111,2]
[372572965,1752688245107,-150.0,0.00021115,2]
[372572967,1752688245116,-150.0,0.00021115,2]
[372572969,1752688245127,-179.7,0.00021124,2]
[372572971,1752688245136,-500.0,0.00021138,2]
[372572973,1752688245146,-1284.8620498,0.00021141,4]
[372572975,1752688245155,-366.79,0.00021158,2]
[372572977,1752688245164,-500.0,0.00021165,2]
[372572979,1752688245174,-299.3,0.00021172,2]
[372572981,1752688245183,-3000.0,0.00021191,5]
[372572983,1752688245193,-622.12,0.000212,2]
[372572985,1752688245203,-622.12,0.000212,2]
[372572987,1752688245212,-1866.93,0.000212,2]
[372572989,1752688245222,-1866.93,0.000212,2]
[372572991,1752688245231,-1866.93,0.000212,2]
[372572993,1752688245241,-373.38,0.000212,2]
[372572995,1752688245251,-1332.95,0.000212,2]
[372572997,1752688245261,-1332.95,0.000212,2]
[372572999,1752688245271,-441.28,0.000212,2]
[372573001,1752688245280,-300.62,0.00021233,2]
[372573003,1752688245290,-500.0,0.00021242,2]
[372573005,1752688245299,-150.0,0.00021242,2]
[372573007,1752688245308,-500.0,0.00021242,2]
[372573009,1752688245318,-439.0,0.00021242,2]
[372573011,1752688245327,-150.0,0.00021242,2]
[372573013,1752688245337,-500.0,0.00021242,2]
[372573015,1752688245346,-500.0,0.00021242,2]
[372573017,1752688245356,-722.0,0.00021242,2]
[372573019,1752688245365,-500.0,0.00021242,2]
[372573020,1752688245375,-500.0,0.00021242,2]
[372573022,1752688245384,-500.0,0.00021242,2]
[372573024,1752688245393,-500.0,0.00021242,2]
[372573026,1752688245402,-150.0,0.00021242,2]
[372573028,1752688245412,-500.0,0.00021242,2]
[372573030,1752688245421,-500.0,0.00021242,2]
[372573032,1752688245431,-1657.0,0.00021242,2]
[372573034,1752688245441,-516.0,0.00021242,2]
[372573036,1752688245451,-500.0,0.00021242,2]
[372573038,1752688245460,-150.0,0.00021242,2]
[372573040,1752688245470,-2253.0,0.00021242,2]
[372573042,1752688245480,-500.0,0.00021242,2]
[372573045,1752688245490,-500.0,0.00021242,2]
[372573048,1752688245499,-476.61752775,0.00021244,2]
[372573051,1752688245508,-160.0,0.00021244,2]
[372573054,1752688245518,-150.0,0.00021245,2]
[372573057,1752688245528,-150.421,0.00021245,2]
[372573059,1752688245537,-150.355,0.00021245,2]
[372573061,1752688245547,-167.889,0.00021245,2]
[372573063,1752688245556,-150.323,0.00021245,2]
[372573065,1752688245565,-150.0,0.00021245,2]
[372573067,1752688245575,-218.103,0.00021245,2]
[372573069,1752688245584,-150.284,0.00021245,2]
[372573072,1752688245594,-150.374,0.00021245,2]
[372573074,1752688245603,-150.078,0.00021245,2]
[372573076,1752688245613,-838.7287696,0.00021248,2]
[372573078,1752688245623,-210.72748344,0.00021248,2]
[372573080,1752688245632,-500.0,0.00021254,2]
[372573082,1752688245641,-150.0,0.00021254,2]
[372573084,1752688245651,-500.0,0.00021254,2]
[372573086,1752688245660,-150.0,0.00021254,2]
[372573088,1752688245669,-500.0,0.00021254,2]
[372573090,1752688245679,-179.7695246,0.00021257,2]
[372573092,1752688245688,-416.03518578,0.00021257,2]
[372573094,1752688245699,-150.0,0.00021258,2]
[372573096,1752688245708,-150.0,0.00021259,2]
[372573098,1752688245718,-150.0,0.00021261,2]
[372573100,1752688245729,-1284.8620498,0.00021279,5]
[372573102,1752688245739,-181.55,0.00021288,2]
[372573104,1752688245748,-154.67,0.000213,2]
[372573106,1752688245758,-225.92925926,0.0002131,2]
[372573108,1752688245768,-404.53967906,0.00021321,2]
[372573110,1752688245778,-253.60898867,0.00021321,2]
[372573113,1752688245788,-505.48267575,0.00021321,2]
[372573114,1752688245797,-946.96256543,0.00021321,2]
[372573116,1752688245807,-1000.0,0.00021321,2]
[372573118,1752688245817,-501.37020136,0.00021321,2]
[372573120,1752688245826,-1408.0,0.0002133,2]
[372573122,1752688245835,-150.0,0.00021336,2]
[372573124,1752688245845,-150.0,0.00021339,2]
[372573126,1752688245855,-151.0,0.00021365,2]
[372573128,1752688245865,-500.0,0.00021369,2]
[372573144,1752688246005,-536.916043,0.00021369,2]
[372573147,1752688246016,-536.916043,0.00021369,2]
[372573149,1752688246027,-725.11,0.0002137,2]
[372573151,1752688246039,-828.75,0.00021399,2]
[372573153,1752688246051,-1600.0,0.000214,2]
[372573155,1752688246061,-800.0,0.000214,2]
[372573157,1752688246071,-2200.0,0.000214,2]
[372573159,1752688246082,-1284.8620498,0.00021417,5]
[372573161,1752688246092,-168.0,0.00021436,2]
[372573163,1752688246102,-150.0,0.00021436,2]
[372573165,1752688246112,-180.41913314,0.00021486,2]
[372573167,1752688246123,-1810.84,0.00021493,2]
[372573169,1752688246134,-216.52160187,0.000215,2]
[372573171,1752688246143,-1844.88856,0.000215,2]
[372573173,1752688246153,-600.0,0.00021507,2]
[372573175,1752688246163,-151.0,0.00021507,2]
[372573177,1752688246173,-500.0,0.00021516,2]
[372573179,1752688246183,-200.0,0.00021516,2]
[372573181,1752688246192,-500.0,0.00021516,2]
[372573183,1752688246202,-439.0,0.00021516,2]
[372573185,1752688246211,-150.0,0.00021516,2]
[372573187,1752688246221,-500.0,0.00021516,2]
[372573189,1752688246231,-500.0,0.00021516,2]
[372573191,1752688246241,-722.0,0.00021516,2]
[372573193,1752688246250,-500.0,0.00021516,2]
[372573195,1752688246260,-500.0,0.00021516,2]
[372573197,1752688246269,-500.0,0.00021516,2]
[372573199,1752688246279,-500.0,0.00021516,2]
[372573201,1752688246289,-154.36901119,0.00021516,2]
[372573203,1752688246299,-500.0,0.00021516,2]
[372573205,1752688246309,-1657.0,0.00021516,2]
[372573207,1752688246319,-205.07695338,0.00021516,2]
[372573286,1752688247113,-310.92304662,0.00021516,2]
[372573289,1752688247126,-500.0,0.00021516,2]
[372573291,1752688247136,-150.0,0.00021516,2]
[372573293,1752688247146,-2253.0,0.00021516,2]
[372573295,1752688247155,-500.0,0.00021516,2]
[372573297,1752688247165,-500.0,0.00021516,2]
[372573299,1752688247174,-151.0,0.00021516,2]
[372573301,1752688247184,-151.0,0.00021516,2]
[372573303,1752688247194,-299.385115,0.00021516,2]
[372573305,1752688247204,-151.0,0.00021516,2]
[372573307,1752688247214,-151.0,0.00021516,2]
[372573309,1752688247224,-151.739921,0.00021516,2]
[372573311,1752688247233,-151.739921,0.00021516,2]
[372573313,1752688247242,-151.96787,0.00021516,2]
[372573315,1752688247252,-151.0,0.00021516,2]
[372573317,1752688247261,-151.0,0.00021521,2]
[372573319,1752688247270,-151.0,0.00021521,2]
[372573321,1752688247280,-182.940037,0.00021521,2]
[372573323,1752688247289,-151.0,0.00021521,2]
[372573325,1752688247299,-448.864062,0.00021521,2]
[372573327,1752688247308,-448.864062,0.00021521,2]
[372573329,1752688247317,-151.0,0.00021521,2]
[372573331,1752688247327,-151.0,0.00021521,2]
[372573333,1752688247337,-152.96794,0.00021521,2]
[372573335,1752688247347,-229.753618,0.00021521,2]
[372573337,1752688247358,-151.0,0.00021521,2]
[372573339,1752688247367,-229.753618,0.00021521,2]
[372573342,1752688247377,-245.874782,0.00021521,2]
[372573344,1752688247388,-151.0,0.00021521,2]
[372573346,1752688247398,-245.874782,0.00021521,2]
[372573348,1752688247407,-195.766121,0.00021521,2]
[372573350,1752688247417,-195.766121,0.00021521,2]
[372573352,1752688247427,-629.582217,0.00021521,2]
[372573354,1752688247437,-629.582217,0.00021521,2]
[372573356,1752688247447,-87.88132647,0.00021521,2]
[372573464,1752688248486,-158.76418946,0.00020606,2]
[372573466,1752688248496,-101.31381054,0.00021077,2]
[372573472,1752688248550,-1033.46168235,0.00021077,2]
[372573597,1752688249806,-1386.25171329,0.00020145,2]
[372573599,1752688249816,-2987.22450711,0.00021077,2]
[372573601,1752688249827,-4340.5237796,0.00021077,2]
[372573603,1752688249838,-811.38186174,0.00021077,2]
[372573608,1752688249873,-6211.15172511,0.00021077,2]
[372573611,1752688249893,-446.82409061,0.00021077,2]
[372573725,1752688251238,-1386.25171329,0.00020202,2]
[372573727,1752688251248,-500.0,0.00020705,2]
[372573729,1752688251257,-877.12828671,0.00021077,2]